Workbook

Sheet Info
D3: INFORMATION - HOW TO ENABLE TOOL FUNCTIONALITY
D8: Background | E8: When downloaded onto a computer, the Digital Twin Strategy Canvas and ROI Calculator may be automatically blocked by the computer's system as it is an external file downloaded from a potentially untrusted source. Blocked files will be unable to access or use the built in macro functions that enable this tool to work. To enable content, follow instructions below.
D11: How to enable the file: | E11: The Digital Twin Strategy Canvas and ROI Calculator ("Excel file") should be first downloaded only from a trusted source from either within ADB, or trusted and authorized third parties. The excel file can have its contents enabled by the following 2 primary steps: 1. Unblock the file on the computer system. On windows devices, this can be done through right-clicking on the file, navigating to the "General" or "Security" tab, and unchecking the box titled "Unblock". An example visual of this process is shown to the right. 2. When opening the excel file, enable macro contents to ensure that all buttons and links within the file work as intended. If any issues persist, please contact the relevant departments within your organization for assistance.
D28: Moving on: | E28: After enabling content, move over to the first tab "Digital Twin Strategy Canvas" to begin the Digital Twin journey.

Sheet Digital Twin Strategy Canvas
D3: STEP 1: CONCEPTUALIZE - DIGITAL TWIN STRATEGY CANVAS
D8: Objective: | E8: To conceptualize the Digital Twin Lite using the Digital Twin Strategy Canvas.
D10: How it works: | E10: The Digital Twin Strategy Canvas ("Canvas") is a planning tool that Project Team Members can utilize in order to logically conceptualize the Digital Twin Lite. The Canvas is comprised of 6 sections and sections 1-4 should be filled in by Project Team Members in order, whereas sections 5-6 are automatically completed by this tool based on inputs from the previous sections. Furthermore, to facilitate the use of this Canvas, a Digital Twin initiative with ADB for Indonesia's new capital Nusantara is used as guidance.
D13: Instructions: | E13: This Canvas should be completed by ADB Project Teams, with optional participation and inputs from DMC Counterparts.
D15: Go to: | E15: 1.) Project Summary
E16: 2.) Project Vision & Strategy
E17: 3.) Project Outputs and Outcomes
E18: 4.) Desired Solution & Benefits
E19: 5.) Indicative Maturity Level
E20: 6.) Past Success Stories
C24: DIGITAL TWIN STRATEGY CANVAS
C28: 1.) PROJECT SUMMARY | I28: 2.) PROJECT VISION & STRATEGY | O28: 3.) PROJECT OUTPUT AND OUTCOMES
C30: =IF(E100=0,"[Complete Canvas inputs below]",E100) -> [Complete Canvas inputs below] | I30: =IF(E130=0,"[Complete Canvas inputs below]",E130) -> [Complete Canvas inputs below] | O30: =IF(E161=0,"[Complete Canvas inputs below]",E161) -> [Complete Canvas inputs below]
C49: 4.) DESIRED SOLUTION & INDICATIVE BENEFITS | L49: 5.) INDICATIVE MATURITY LEVEL | Q49: 6.) PAST SUCCESS STORIES
D51: DESIRED SOLUTION(S) | G51: AND INDICATIVE BENEFITS | L51: Your desired twin is… | Q51: Some examples of…
L52: =IFERROR(TEXT(I205,"0"),"Complete Canvas inputs below") -> - | Q52: =IFERROR(TEXT(I205,"0"),"Complete Canvas inputs below") -> -
C53: =IF(D175=0,"-",D175) -> - | D53: Stress test the potential infrastructure against current built-environment | G53: Improved investment decision making; feasibility assessment
L54: =IF(L52="Level 1: Descriptive Twin",J210,IF(L52="Level 2: Informative Twin",J231,IF(L52="Level 3: Predictive Twin",J251,"[Complete Canvas inputs below]"))) -> [Complete Canvas inputs below] | Q54: =IF(Q52="Level 1: Descriptive Twin",_xlfn.ARRAYTOTEXT(J283:J288),IF(Q52="Level 2: Informative Twin",_xlfn.ARRAYTOTEXT(J291:J296),IF(Q52="Level 3: Predictive Twin",_xlfn.ARRAYTOTEXT(J299:J308),"[Complete Canvas inputs below]"))) -> [Complete Canvas inputs below]
C56: =IF(D178=0,"-",D178) -> - | D56: Stress test the potential infra. against future conditions and environments (e.g. climate change, physical risks) | G56: Improved investment decision making; feasibility assessment; climate-resilient infrastructure
C59: =IF(D181=0,"-",D181) -> - | D59: Evaluate and optimize design to meet specific outcome(s) | G59: Alternative infrastructure designs; reduce resource consumption; improved sustainability; reduction in GHG emissions; improve service quality and satisfaction
C62: =IF(D184=0,"-",D184) -> - | D62: Urban planning tool to conceptualize different urban designs and analyze various scenarios | G62: Improved investment decision making; optimized land use and resource usage; improve service quality and satisfaction
C65: =IF(D187=0,"-",D187) -> - | D65: Collaborate and visualize virtually | G65: Improve design process; informed and early stakeholder feedback; reduce lead time; greater access to information
C68: =IF(D190=0,"-",D190) -> - | D68: Immerse and experience virtually | G68: Boost marketing potential for the Digital Twin; Enhance stakeholder adoption and buy-in
C71: =IF(D193=0,"-",D193) -> - | D71: Conduct immersive training | G71: Improve workforce capacity; improve workplace efficiency; reduce operational lead times; improve workplace safety
C74: =IF(D196=0,"-",D196) -> - | D74: Monitoring the construction and building of the infrastructure | G74: Remote monitoring; real-time or near real-time decision making; reduce operational lead times; prevent construction delays
C79: 1.) PROJECT SUMMARY | S79: Jump to Canvas
D85: What: | E85: The Project Team Member should provide a short description of infrastructure project in consideration for the Digital Twin, including project particulars, key objectives, project lifecycle stage and other key details that may be useful to record for other users of the Canvas (e.g., procurement officers, technology vendors, officials from the implementing agency, etc.). Furthermore, the description of the project should avoid focusing on the Digital Twin at this stage.
D89: Guidance: | E89: - Provide short description of the infrastructure project in consideration for the Digital Twin - Include project particulars, key objectives, project lifecycle stage, and other key details that may be useful - Avoid focusing on the Digital Twin
D93: Example: | E93: ADB is supporting the Nusantara National Capital Authority (NNCA) in the development of Nusantara, the future capital city of Indonesia, as a carbon-neutral forest city, and become carbon-neutral by 2045. The city of Nusantara spans across 2,561 Sq. km of land area and is situated on the east coast of the island of Borneo. This first involves developing a ‘compass’ in planning, developing, and managing the carbon neutrality journey in the form of a Net Zero Strategy. The Strategy will address five focus areas including Forestry and Other Land Uses (rehabilitation and protection), Energy (No fossil fuel), Industrials (Green building and materials), Waste Mgt. (Circular economy), and Agriculture (regenerative agri).
D100: Input:
C108: 2.) PROJECT VISION & STRATEGY | S108: Jump to Canvas
D114: What: | E114: This section should identify and record any important details that convey the vision and strategic relevance of the infrastructure project. This could include details of a larger regional or national strategy or vision of the project sponsors under which the project is a part of, and how it aligns with ADB’s long term strategy (Strategy 2030) and operational priorities (OP). This section of the canvas is reserved to communicate the importance of the project to future users and key decision makers. Once again, the vision and strategy of the project should avoid focusing on the Digital Twin at this stage.
D119: Guidance: | E119: - Provide the overarching vision and strategy for the infrastructure project - Include details of associated larger regional or national strategy or vision (Optional) - Include details fo how it aligns with ADB's long-term strategy (Strategy 2030) and operational priorities (Optional) - Avoid focusing on the Digital Twin
D124: Example: | E124: This Project is part of a wider technical assistance project aimed at supporting selected DMCs to plan and develop livable cities that are smart, inclusive, environmentally sustainable, resilient, and competitive. The Project greatly aligns with national strategy, as Indonesia designated Nusantara as the new capital. The project will further be supporting Indonesia’s efforts (Master Plan Presidential Regulation No. 63/2022) to boost climate resilience by mitigating carbon emissions and adapting to climate change which will pave the pathway to achieving net zero in 2045. The Project also supports 4 ADB operational priorities (OP) such as OP3: Making Cities More Liveable.
D130: Input:
C138: 3.) PROJECT OUTPUTS & OUTCOMES | S138: Jump to Canvas
D144: What: | E144: In this section, the project team begins to brainstorm the underlying question of ‘why’ a solution is needed at this early stage of the infrastructure project. Using ADB’s published Design and Monitoring Framework (DMF) structure, readers should first identify the outputs and outcomes of their project, based on the OPs identified from the previous step (Project Vision and Strategy). The intended project outputs and outcomes are typically prepared by ADB project teams as part of documents such as the Project Data Sheet and Report and Recommendation of the President (RRP), and are in any case necessary as part of the project completion report.
D149: Guidance: | E149: - Base outputs and outcomes on the ADB Operational Priorities - Use existing ADB documentation such as the Design and Monitoring Framework, Project Data Sheet, and the Report and Recommendation of the President (RRP) to assist - Consider consultations with other project stakeholders (List of technology vendors in the Framework's Annex) - Evaluate the list and reconsider whether non-technological interventions can already achieve project outputs/outcomes
D155: Example: | E155: Outcome: Improve Nusantara’s capacity to plan/enforce urban planning systems, provide service, manage finance Outputs: - Improve urban planning systems and enforcement - Improve key infrastructure and municipal service delivery - Financial management systems in Nusantara improved to ensure limited financing is utilized in the most efficient manner to promote transparency and accountability Nusantara’s (NNCA’s) target outputs: - Reduce carbon emissions by 1.1MtCO2 - Protect and restore 59,000ha and 83,000ha of forests respectively to improve carbon stock - Construction of 50MW solar panels - 60% recovering/recycling of waste, 40% of waste converted into energy
D161: Input:
C169: 4.) DESIRED SOLUTION & BENEFITS | S169: Jump to Canvas
D173: FILL | F173: DESIRED SOLUTION(S) | I173: AND INDICATIVE BENEFITS
F175: Stress test the potential infrastructure against current built-environment | I175: Improved investment decision making; feasibility assessment
F178: Stress test the potential infra. against future conditions and environments (e.g. climate change, physical risks) | I178: Improved investment decision making; feasibility assessment; climate-resilient infrastructure
F181: Evaluate and optimize design to meet specific outcome(s) | I181: Alternative infrastructure designs; reduce resource consumption; improved sustainability; reduction in GHG emissions; improve service quality and satisfaction
F184: Urban planning tool to conceptualize different urban designs and analyze various scenarios | I184: Improved investment decision making; optimized land use and resource usage; improve service quality and satisfaction
F187: Collaborate and visualize virtually | I187: Improve design process; informed and early stakeholder feedback; reduce lead time; greater access to information
F190: Immerse and experience virtually | I190: Boost marketing potential for the Digital Twin; Enhance stakeholder adoption and buy-in
F193: Conduct immersive training | I193: Improve workforce capacity; improve workplace efficiency; reduce operational lead times; improve workplace safety
F196: Monitoring the construction and building of the infrastructure | I196: Remote monitoring; real-time or near real-time decision making; reduce operational lead times; prevent construction delays
C202: 5.) INDICATIVE MATURITY LEVEL | S202: Jump to Canvas
C205: Your desired Digital Twin Lite is a… | I205: =IFERROR('Mapping (v3)'!I19,"-") -> -
C206: =TEXT(I205,"0") -> -
C276: 6.) PAST SUCCESS STORIES | S276: Jump to Canvas
C279: Here are some examples of a
C280: =TEXT(I205,"0") -> - | J280: Digital Twin Past Success Stories
J282: Level 1
J283: Digital Twin of Trondheim, Norway
J284: Digital Twin of Jeonju City
J285: Digital Twin of a Precinct - Melbourne Quarter
J286: Digital Twin of a Port - Nauru
J287: Digital Twin of Rail Stations - Smart Stations
J288: Digital Twin of a Substation - Sidwawa
J290: Level 2
J291: Digital Twin of a Building - University of Melbourne
J292: Digital Twin of a Railway - Johor Bahru-Singapore
J293: Digital Twin of a Railway - Redfern
J294: Digital Twin of a Railway - ARTC
J295: Digital Twin of UK's National Grid
J296: Digital Twin of a Steel Plant - MCC Capital
J298: Level 3
J299: Digital Twin of Siemensstadt Square
J300: Virtual Singapore
J301: New South Wales (NSW) Spatial Digital Twin
J302: Digital Twin of Monaco
J303: Digital Twin Victoria
J304: Penang Smart Mobility
J305: Digital Twin of a Wastewater Treatment Plant - Echowater
J306: Digital Twin of a Hydraulic Pipe System in Ayodhya
J307: Digital Twin for Road Design - Uzbekistan A380
J308: Digital Twin of Rail Crossings - Parkdale
C316: 7.) SEE COMPLETED CANVAS OR MOVE FORWARD TO BUILD A BUSINESS CASE (ROI CALCULATOR)
C319: JUMP TO CANVAS | L319: BUILD A BUSINESS CASE

Sheet ROI Calculator
D3: STEP 2: BUSINESS CASE - ASSESS THE ROI POTENTIAL FOR THE DIGITAL TWIN LITE
D9: Date: | E9: 1st March, 2024
D11: Purpose: | E11: Given the diverse purposes, project locations, and multitude of technologies inherent in digital twin creation, alongside the unquantifiable benefits they offer, it becomes challenging to accurately predict a return on investment (ROI). This model endeavors to provide indicative figures to assist in the initial decision-making process for the digital twin journey.
D14: Disclaimer: | E14: This model ("ROI calculator") prepared by AWR Lloyd Limited ("AWR Lloyd") is strictly confidential. Save as specifically agreed in writing by AWR Lloyd, the ROI calculator must not be copied, reproduced, distributed, or passed, in whole or in part, to any individual or entity. The ROI calculator should not be used for any other purpose without the prior written consent of AWR Lloyd. This ROI calculator has been prepared partly on the basis of information from publicly available information and information attained from the client which is believed to be accurate and reliable. This information, which does not purport to be comprehensive, has not been independently verified by AWR Lloyd. The ROI calculator is based on various assumptions, data inputs, and methodologies. While AWR Lloyd has exercised due care and skill in developing the ROI calculator to maximize indicative accuracy, it is not immune to inherent uncertainties and limitations. It is not intended as definitive predictions to be used in isolation, but instead as tools for analysis. It is not intended to provide the primary basis of any investment decision, credit, legal, financial or other evaluation and should not be regarded as a recommendation or taken as a commitment to future outcomes. In particular, but without prejudice to the generality of the foregoing, no representation or warranty is given as to the achievement or reasonableness of any future projections, estimates, prospects or returns contained in the ROI calculator. This ROI calculator and any presentation made in relations to this ROI calculator does not constitute an offer or invitation for the sale or purchase of securities, or any businesses or assets described in it, nor does it purport to give legal, tax, or financial advice. The findings, interpretations, conclusions, projections, and the underlying information of the ROI calculator does not necessarily reflect the views of AWR Lloyd and its partners.
D27: Limitations: | E27: With efforts to reduce complexity, consolidation of limited available data and metrics for end use in high-level ROI calculations are aggregated and prone to eventual subjectivity bias. Cost data is inherently limited as case-studies and technology vendors do not often disclose total investment costs due to confidentiality. Categorization also includes maturity level differences, as it is based on the framework's definitions, raising potential for differences with other categorizations in the industry, resulting in indicative and high-level results. Cost data is also non-specific and inherently dependent on the use-case or technology involved, yielding varying ranges depending on the sector application and the type of asset being used (e.g., the number of sensors, type of solution, complexity of technologies, etc.). This simplificaion generalizes involved cost elements to produce a high-level and indicative result. Calculations also witness subjectivity bias as asset scale categorization is based on general size and scale, not set to a specific measurable range (e.g., 50 - 1000 sq.m.). The benefits derived from available case-study data are aggregated and applied 'as-stated', lacking explicit clarification on lifecycle impact and whether metrics are approximates, incremental, or derived through alternate considerations. Data is also non-specific, as benefits are inherently case-specific or twin-specific outcomes that may not be applicable to all uses. In reducing complexity, calculations also consolidate all relevant metrics under common key benefit categories, and Digital Twin benefits for full-lifecycle twins are also uniformly applied throughout the entire lifecycle regardless of lifecycle phase of origin. This introduces bias for both categorization subjectivity and potential inflation of overall calculations as improvements in proportionally smaller cost components are generalized and applied to overall costs. Finally, several benefit categories are qualitative (e.g. informed decision making, visualization and monitoring) and the lack of quantification may further skew results.
D36: Objective: | E36: This ROI Calculator serves as a tool to determine the high-level ROI potential for the Digitl Twin Lite, and provides a starting point for the cost-benefit analysis (CBA) that should be undertaken by ADB Project Teams in accordance with ADB's Cost-Benefit Analysis for Development: A Practical Guide.
E37: Link to Cost-Benefit Analysis for Development: A Practical Guide
D38: How it works: | E38: The Digital Twin calculator is comprised of two parts: (1) Estimated cost, and (2) Estimated benefits. Project Team members will be required to complete each part in order to arrive at an ROI figure. Refer to the ADB Digital Twin Framework document to learn more on how this tool works.
D42: Instructions: | E42: 1) This Canvas should be completed by ADB Project Teams, with optional participation and inputs from DMC Counterparts. 2) Fill in all cells in yellow as best as possible, based on available information. This ROI calculator can be revisted any time necessary, in case there is new or additional information. 3) Upon completion of all questions, an indicative return on investment will be provided in Row 210.
C52: PART 1: ESTIMATING THE COST OF THE DIGITAL TWIN
R55: Fill all cells in yellow
C57: The indicative Maturity Level of your Digital Twin implementation based on the assessment in Step 1: Digital Twin Strategy Canvas | R57: =IF('Mapping (v3)'!J19="Level 0","-",'Mapping (v3)'!J19) -> -
H59: Figure 1: Digital Twin Maturity Levels (illustrative)
D82: Q1.) is auto-populated based on input provided in the Digital Twin Strategy Canvas in Step 1: Plan
C84: Q1.) | D84: What is the scale of the infrastructure asset in which the Digital Twin will be based on?
H86: Figure 2: Scale of infrastructure assets (illustrative example)
R107: OPTIONAL: IF UNKNOWN, LEAVE BLANK
C108: Q2.) | D108: [OPTIONAL] What is the estimated or expected cost of the Digital Twin of your infrastructure asset? (Please input full number, in US$)
C112: Results: | D112: Estimated cost of the Digital Twin implementation based on indicative Maturity Level and Scale of Asset
D116: Range* of Digital Twin cost based on selected Maturity Level and Scale of Asset
D118: Remarks about the range: | J118: Unit: US$M | Z118: Minimum | AA118: =IFERROR(AA137-(INDEX(Costs_Data!B74:E77,MATCH(G137,Costs_Data!B74:B77,0),MATCH(L137,Costs_Data!B74:E74,0))),"-") -> -
Z119: Median | AA119: =IF(R108>0,"-",AA137) -> -
D120: Given that the default value for the indicative cost of the Digital Twin implementation will be the median cost, Project Team Members will also have the option to select the minimum and maximum cost for their respective Digital Twin configuration. The selected value will be used in the ROI calculation. *The minimum and maximum range is derived from the Standard Deviation of all cost for each Asset Scale under each Maturity Level. Min = Optimstic; Median = Conservative; Max = Pessimistic | Z120: Maximum | AA120: =IFERROR(AA137+(INDEX(Costs_Data!B74:E77,MATCH(G137,Costs_Data!B74:B77,0),MATCH(L137,Costs_Data!B74:E74,0))),"-") -> -
D132: [OPTIONAL] Selected cost:
D137: =IF(ISBLANK(R108),Dropdown!B30,Dropdown!B35) -> The indicative cost of a | G137: =IF(ISBLANK(R108),R57,"-") -> - | I137: =IF(ISBLANK(R108),Dropdown!B31,Dropdown!B36) -> Digital Twin for a | L137: =IF(ISBLANK(R108),IF(ISBLANK(R84), "-",R84),"-") -> - | N137: =IF(ISBLANK(R108),Dropdown!B32,Dropdown!B37) -> scale asset is | P137: =IF(ISBLANK(R108),IF(AND(ISBLANK(R108),ISBLANK(G132)), IFERROR(INDEX(Costs_Data!B9:E12,MATCH(R57,Costs_Data!B9:B12),MATCH(R84,Costs_Data!B9:E9,0))/1000,"-"),IFERROR(VLOOKUP(G132,Z118:AA120,2,FALSE),R108/10^6)),R108/10^6) -> - | S137: US$ M | Z137: Default | AA137: =IF(ISBLANK(R108),IFERROR(INDEX(Costs_Data!B9:E12,MATCH(R57,Costs_Data!B9:B12),MATCH(R84,Costs_Data!B9:E9,0))/1000,"-"),"-") -> -
C143: PART 2: ESTIMATING THE BENEFITS OF THE DIGITAL TWIN | T143: Back to top
C147: Q3.) | D147: What is the total estimated Capital Expenditure (CAPEX) of the infrastructure asset (in US$)?
D148: Important: This is the CAPEX of the underlying infrastructure (e.g. road) not the DT Lite (e.g. Virtual Twin of the Road)
R149: =COUNTIF(R152:S164,"Yes") -> 0 | S149: Benefits | U149: Median %
C150: Based on your desired solution and benefits in the Canvas, your digital twin is likely to have the following benefits… | S150: achieved | U150: achieved
U151: *for quantifiable benefits
D152: Visualization and monitoring | R152: =IF('Mapping (v3)'!F$22=FALSE,"No","Yes") -> No | T152: =IF(R152="Yes","Qualitative","-") -> -
D153: Informed decision-making | R153: =IF('Mapping (v3)'!G$22=FALSE,"No","Yes") -> No | T153: =IF(R153="Yes","Qualitative","-") -> -
D154: Resource optimization and loss reduction | R154: =IF('Mapping (v3)'!H$22=FALSE,"No","Yes") -> No | T154: =IF(R154="Yes",Benefits_Data!D14,"-") -> -
D155: Productivity gains | R155: =IF('Mapping (v3)'!I$22=FALSE,"No","Yes") -> No | T155: =IF(R155="Yes",Benefits_Data!D15,"-") -> -
D156: Improve operations, inspection, maintenance | R156: =IF('Mapping (v3)'!J$22=FALSE,"No","Yes") -> No | T156: =IF(R156="Yes",Benefits_Data!D16,"-") -> -
D157: Improve or optimize financial performance | R157: =IF('Mapping (v3)'!K$22=FALSE,"No","Yes") -> No | T157: =IF(R157="Yes",Benefits_Data!D17,"-") -> -
D158: Improve quality | R158: =IF('Mapping (v3)'!L$22=FALSE,"No","Yes") -> No | T158: =IF(R158="Yes",Benefits_Data!D18,"-") -> -
D159: Increase customer satisfaction | R159: =IF('Mapping (v3)'!M$22=FALSE,"No","Yes") -> No | T159: =IF(R159="Yes",Benefits_Data!D19,"-") -> -
D160: Improved knowledge and collaboration | R160: =IF('Mapping (v3)'!N$22=FALSE,"No","Yes") -> No | T160: =IF(R160="Yes",Benefits_Data!D20,"-") -> -
D161: Security and safety | R161: =IF('Mapping (v3)'!O$22=FALSE,"No","Yes") -> No | T161: =IF(R161="Yes",Benefits_Data!D21,"-") -> -
D162: Predictive intelligence | R162: =IF('Mapping (v3)'!P$22=FALSE,"No","Yes") -> No | T162: =IF(R162="Yes","Qualitative","-") -> -
D163: Risk Management and resilience | R163: =IF('Mapping (v3)'!Q$22=FALSE,"No","Yes") -> No | T163: =IF(R163="Yes",Benefits_Data!D23,"-") -> -
D164: Improved environmental sustainability | R164: =IF('Mapping (v3)'!R$22=FALSE,"No","Yes") -> No | T164: =IF(R164="Yes",Benefits_Data!D35,"-") -> -
D165: Benefits are auto-populated based on input provided in the Digital Twin Strategy Canvas in Step 1: Plan
R167: OPTIONAL: IF UNKNOWN, LEAVE BLANK
C168: Q4.) | D168: [OPTIONAL] What is the total dollar benefits estimated to be achieved by the digital twin? | T168: in US$
R170: OPTIONAL: IF UNKNOWN, LEAVE BLANK
C171: Q5.) | D171: [OPTIONAL] What is the total estimated carbon emissions produced over the entire project lifecycle? | T171: tCO2e
C175: Results: | D175: Estimated benefits of the Digital Twin implementation
D179: Range* of Digital Twin benefits based on selected Maturity Levels
D181: Remarks about the range: | J181: Unit: % cost-savings
D183: The default value for the indicative benefits of the Digital Twin implementation will be the median of all achieved benefits. Project Team Members also have the option to select the minimum and maximum benefit factor for their respective Digital Twin configuration. The selected value will be used in the ROI calculation. However, if the cost savings derived from the benefits are too large, the Calculator will limit achievable benefits to the a maximum reasonable value based on precedent Digital Twin implementations. *The minimum and maximum range is derived from the Standard Deviation of all percentage benefit factors for each Benefit category and each Maturity Level. Min = Optimstic; Median = Conservative; Max = Pessimistic
D195: [OPTIONAL] Selected benefit:
D200: The indicative cost savings for a | H200: D&B | I200: project with the | L200: =R149 -> 0 | M200: key benefit(s) is | P200: =IFERROR(IF(R168=FALSE,(MIN(Benefits_Data!C28,Benefits_Data!C29)/10^6),R168/10^6),"-") -> - | S200: US$ M
C206: RESULTS: RETURN ON INVESTMENT POTENTIAL | T206: Back to top
D210: The indicative return on investment (ROI) potential of the Digital Twin solution is… | P210: =IFERROR(IF(P200="-","-",P200/P137),"-") -> - | S210: x | AA210: =IF(ISBLANK(#REF!),IFERROR(INDEX(Costs_Data!B163:E166,MATCH(R155,Costs_Data!B163:B166),MATCH(#REF!,Costs_Data!B163:E163,0))/1000,"-"),"-") -> -
D211: Note: A DT Lite should be pursued if the ROI > 1.2x to 1.25x
D215: The indicative impact (in US$) from reductions in carbon emissions are… | P215: =IFERROR(IF(R171>0,Benefits_Data!C42,"-"),"") -> -
C220: END: MOVE TO STEP 3 AND PRINT ALL RESULTS
H223: PRINT ALL RESULTS

Sheet Results
D3: RESULTS: SUMMARIZED OUTPUTS FROM STEP 1: CONCEPTUALIZE, AND STEP 2: BUSINESS CASE
C8: STEP 1: CONCEPTUALIZE - DIGITAL TWIN STRATEGY CANVAS
C12: 1.) PROJECT SUMMARY | I12: 2.) PROJECT VISION & STRATEGY | O12: 3.) PROJECT OUTPUT AND OUTCOMES
C14: =IF('Digital Twin Strategy Canvas'!E100=0,"[Complete Canvas inputs below]",'Digital Twin Strategy Canvas'!E100) -> [Complete Canvas inputs below] | I14: =IF('Digital Twin Strategy Canvas'!E130=0,"[Complete Canvas inputs below]",'Digital Twin Strategy Canvas'!E130) -> [Complete Canvas inputs below] | O14: =IF('Digital Twin Strategy Canvas'!E161=0,"[Complete Canvas inputs below]",'Digital Twin Strategy Canvas'!E161) -> [Complete Canvas inputs below]
C33: 4.) DESIRED SOLUTION & INDICATIVE BENEFITS | L33: 5.) INDICATIVE MATURITY LEVEL | Q33: 6.) PAST SUCCESS STORIES
D35: DESIRED SOLUTION(S) | G35: AND INDICATIVE BENEFITS | L35: Your desired twin is… | Q35: Some examples of…
L36: =IFERROR(TEXT('Digital Twin Strategy Canvas'!I205,"0"),"Complete Canvas inputs below") -> - | Q36: =IFERROR(TEXT('Digital Twin Strategy Canvas'!I205,"0"),"Complete Canvas inputs below") -> -
C37: =IF('Digital Twin Strategy Canvas'!D175=0,"-",'Digital Twin Strategy Canvas'!D175) -> - | D37: Stress test the potential infrastructure against current built-environment | G37: Improved investment decision making; feasibility assessment
L38: =IF('Digital Twin Strategy Canvas'!L52="Level 1: Descriptive Twin",'Digital Twin Strategy Canvas'!J210,IF('Digital Twin Strategy Canvas'!L52="Level 2: Informative Twin",'Digital Twin Strategy Canvas'!J231,IF('Digital Twin Strategy Canvas'!L52="Level 3: Predictive Twin",'Digital Twin Strategy Canvas'!J251,"[Complete Canvas inputs below]"))) -> [Complete Canvas inputs below] | Q38: =IF('Digital Twin Strategy Canvas'!Q52="Level 1: Descriptive Twin",_xlfn.ARRAYTOTEXT('Digital Twin Strategy Canvas'!J283:J288),IF('Digital Twin Strategy Canvas'!Q52="Level 2: Informative Twin",_xlfn.ARRAYTOTEXT('Digital Twin Strategy Canvas'!J291:J296),IF('Digital Twin Strategy Canvas'!Q52="Level 3: Predictive Twin",_xlfn.ARRAYTOTEXT('Digital Twin Strategy Canvas'!J299:J308),"[Complete Canvas inputs below]"))) -> [Complete Canvas inputs below]
C40: =IF('Digital Twin Strategy Canvas'!D178=0,"-",'Digital Twin Strategy Canvas'!D178) -> - | D40: Stress test the potential infra. against future conditions and environments (e.g. climate change, physical risks) | G40: Improved investment decision making; feasibility assessment; climate-resilient infrastructure
C43: =IF('Digital Twin Strategy Canvas'!D181=0,"-",'Digital Twin Strategy Canvas'!D181) -> - | D43: Evaluate and optimize design to meet specific outcome(s) | G43: Alternative infrastructure designs; reduce resource consumption; improved sustainability; reduction in GHG emissions; improve service quality and satisfaction
C46: =IF('Digital Twin Strategy Canvas'!D184=0,"-",'Digital Twin Strategy Canvas'!D184) -> - | D46: Urban planning tool to conceptualize different urban designs and analyze various scenarios | G46: Improved investment decision making; optimized land use and resource usage; improve service quality and satisfaction
C49: =IF('Digital Twin Strategy Canvas'!D187=0,"-",'Digital Twin Strategy Canvas'!D187) -> - | D49: Collaborate, visualize or experience virtually | G49: Improve design process; informed and early stakeholder feedback; reduce lead time; greater access to information
C52: =IF('Digital Twin Strategy Canvas'!D190=0,"-",'Digital Twin Strategy Canvas'!D190) -> - | D52: Immerse and experience visually | G52: Boost marketing potential for the Digital Twin; Enhance stakeholder adoption and buy-in
C55: =IF('Digital Twin Strategy Canvas'!D193=0,"-",'Digital Twin Strategy Canvas'!D193) -> - | D55: Conduct immersive training | G55: Improve workforce capacity; improve workplace efficiency; reduce operational lead times; improve workplace safety
C58: =IF('Digital Twin Strategy Canvas'!D196=0,"-",'Digital Twin Strategy Canvas'!D196) -> - | D58: Monitoring the construction and building of the infrastructure | G58: Remote monitoring; real-time or near real-time decision making; reduce operational lead times; prevent construction delays
C64: STEP 2: BUSINESS CASE - INDICATIVE ROI POTENTIAL
D68: =IF(ISBLANK('ROI Calculator'!R108),Dropdown!B30,Dropdown!B35) -> The indicative cost of a | G68: =IF(ISBLANK('ROI Calculator'!R108),'ROI Calculator'!R57,"-") -> - | I68: =IF(ISBLANK('ROI Calculator'!R108),Dropdown!B31,Dropdown!B36) -> Digital Twin for a | L68: =IF(ISBLANK('ROI Calculator'!R108),IF(ISBLANK('ROI Calculator'!R84), "-",'ROI Calculator'!R84),"-") -> - | N68: =IF(ISBLANK('ROI Calculator'!R108),Dropdown!B32,Dropdown!B37) -> scale asset is | P68: =IF(ISBLANK('ROI Calculator'!R108),IF(AND(ISBLANK('ROI Calculator'!R108),ISBLANK('ROI Calculator'!G132)), IFERROR(INDEX(Costs_Data!B9:E12,MATCH('ROI Calculator'!R57,Costs_Data!B9:B12),MATCH('ROI Calculator'!R84,Costs_Data!B9:E9,0))/1000,"-"),IFERROR(VLOOKUP('ROI Calculator'!G132,'ROI Calculator'!Z118:AA120,2,FALSE),'ROI Calculator'!R108/10^6)),'ROI Calculator'!R108/10^6) -> - | S68: US$ M | Z68: Default | AA68: =IF(ISBLANK(R35),IFERROR(INDEX(Costs_Data!#REF!,MATCH(#REF!,Costs_Data!#REF!),MATCH(R11,Costs_Data!#REF!,0))/1000,"-"),"-") -> -
D72: The indicative cost savings for a | H72: D&B | I72: project with the | L72: ='ROI Calculator'!R149 -> 0 | M72: key benefit(s) is | P72: =IFERROR(MIN(Benefits_Data!C28,Benefits_Data!C29)/10^6,"-") -> - | S72: US$ M
D76: The indicative return on investment (ROI) potential of the Digital Twin solution is… | P76: =IFERROR(IF('ROI Calculator'!P200="-","-",'ROI Calculator'!P200/'ROI Calculator'!P137),"-") -> - | S76: x
D77: Note: A DT Lite should be pursued if the ROI > 1.2x
D81: The indicative impact (in US$) from reductions in carbon emissions are… | P81: =IFERROR(IF('ROI Calculator'!R171>0,Benefits_Data!C42,"-"),"") -> -

Sheet Use-Cases
A1: Return
D2: Sectors: | E2: Water & Urban Development | I2: Transport | K2: Energy | M2: Others
A5: Water & Urban Dev.
B6: Level 1
B35: Level 2
B65: Level 3
A156: Transport
B157: Level 1
B186: Level 2
B243: Level 3
A300: Energy
B301: Level 1
B329: Level 2
B358: Level 3
A387: Others
B388: Level 2
B416: Level 3

Sheet Mapping (v3) (hidden)
A1: BENEFIT AND MATURITY MAPPING PER SOLUTION
A3: Status | B3: No. | C3: Desired Solution | D3: Maturity | E3: Maturity Check | F3: Visualization and Monitoring | G3: Informed Decision Making | H3: Resource optimization and loss reduction | I3: Productivity gains | J3: Improve O&M | K3: Improve or optimize financial performance | L3: Improve quality | M3: Increase customer satisfaction | N3: Improved knowledge and collaboration | O3: Security and safety | P3: Predictive Intelligence | Q3: Risk management and resilience | R3: Improved environmental sustainability
A4: ='Digital Twin Strategy Canvas'!D175 -> 0 | B4: 1 | C4: Stress test the potential infrastructure against current built environment | D4: 2 | E4: =IF(A4="Yes",D4,"-") -> - | F4: =IF($A4="Yes", TRUE, FALSE) -> FALSE | G4: =IF($A4="Yes", TRUE, FALSE) -> FALSE | H4: - | I4: - | J4: - | K4: - | L4: - | M4: - | N4: =IF($A4="Yes", TRUE, FALSE) -> FALSE | O4: - | P4: - | Q4: - | R4: - | S4: =COUNTIF(F4:R4,TRUE) -> 0
A5: ='Digital Twin Strategy Canvas'!D178 -> 0 | B5: 2 | C5: Stress test against future conditions and environments (e.g. climate change) | D5: 3 | E5: =IF(A5="Yes",D5,"-") -> - | F5: - | G5: =IF($A5="Yes", TRUE, FALSE) -> FALSE | H5: - | I5: - | J5: - | K5: - | M5: - | N5: - | O5: FALSE | P5: FALSE | Q5: FALSE | R5: =IF($A5="Yes", TRUE, FALSE) -> FALSE | S5: =COUNTIF(F5:R5,TRUE) -> 0
A6: ='Digital Twin Strategy Canvas'!D181 -> 0 | B6: 3 | C6: Evaluate and optimize design to meet specific outcomes(s) | D6: 3 | E6: - | F6: =IF($A6="Yes", TRUE, FALSE) -> FALSE | G6: - | H6: FALSE | I6: FALSE | J6: - | K6: FALSE | L6: FALSE | M6: - | N6: - | O6: - | P6: - | Q6: - | R6: FALSE | S6: 0
A7: ='Digital Twin Strategy Canvas'!D184 -> 0 | B7: 4 | C7: Urban planning tool to conceptualize different urban designs and analyze various scenarios | D7: 2 | E7: - | F7: FALSE | G7: FALSE | H7: FALSE | I7: - | J7: - | K7: FALSE | L7: FALSE | M7: - | N7: - | O7: - | P7: - | Q7: - | R7: FALSE | S7: 0
A8: ='Digital Twin Strategy Canvas'!D187 -> 0 | B8: 5 | C8: Collaborate, visualize, or experience virtually | D8: 1 | E8: - | F8: FALSE | G8: - | H8: - | I8: FALSE | J8: - | K8: FALSE | L8: - | M8: FALSE | N8: FALSE | O8: - | P8: - | Q8: - | R8: - | S8: 0
A9: ='Digital Twin Strategy Canvas'!D190 -> 0 | B9: 6 | C9: Immerse and experience virtually | D9: 1 | E9: - | F9: FALSE | G9: FALSE | H9: - | I9: - | J9: - | K9: - | L9: - | M9: FALSE | N9: FALSE | O9: - | P9: - | Q9: - | R9: - | S9: 0
A10: ='Digital Twin Strategy Canvas'!D193 -> 0 | B10: 7 | C10: Conduct immersive training | D10: 1 | E10: =IF(A10="Yes",D10,"-") -> - | F10: =IF($A10="Yes", TRUE, FALSE) -> FALSE | G10: - | H10: - | I10: FALSE | J10: - | K10: - | L10: - | M10: - | N10: FALSE | O10: FALSE | P10: - | Q10: - | R10: - | S10: 0
A11: ='Digital Twin Strategy Canvas'!D196 -> 0 | B11: 8 | C11: Monitor the construction and building of the infrastructure | D11: 1 | E11: - | F11: FALSE | G11: FALSE | H11: FALSE | I11: FALSE | J11: - | K11: - | L11: - | M11: - | N11: - | O11: - | P11: - | Q11: FALSE | R11: - | S11: 0
C13: Maturity Choice | E13: Level | F13: Name | G13: Append 1 | H13: Append 2 | I13: Concatenate | J13: for ROI
E14: 1 | F14: Descriptive Twin
E15: 2 | F15: Informative Twin
E16: 3 | F16: Predictive Twin
E17: 4 | F17: Prescriptive Twin
E18: 5 | F18: Autonomous Twin
C19: FINAL MATURITY | E19: =MAX(E4:E11) -> 0 | F19: =VLOOKUP(E19,E14:F18,2) ->  | G19: Level | H19: : | I19: =_xlfn.CONCAT(G19,E19,H19,F19) ->  | J19: =_xlfn.CONCAT(G19,E19) -> Level 0
C21: Benefit Logic Check | E21: Count | F21: Visualization and Monitoring | G21: Informed Decision Making | H21: Resource optimization and loss reduction | I21: Productivity gains | J21: Improve O&M | K21: Improve or optimize financial performance | L21: Improve quality | M21: Increase customer satisfaction | N21: Improved knowledge and collaboration | O21: Security and safety | P21: Predictive Intelligence | Q21: Risk management and resilience | R21: Improved environmental sustainability
C22: FINAL BENEFITS | F22: =OR(F4:F11) -> FALSE | G22: =OR(G4:G11) -> FALSE | H22: FALSE | I22: FALSE | J22: =IFERROR(OR(J4:J11),FALSE) -> FALSE | K22: FALSE | L22: FALSE | M22: FALSE | N22: FALSE | O22: FALSE | P22: FALSE | Q22: FALSE | R22: FALSE

Sheet Costs_Data (hidden)
B3: MULTIPLIER BETWEEN ASSET SCALES | E3: Asset Size (Unit: '000)
B4: Maturity Level / Project Name | C4: Small | D4: Medium | E4: Large | G4: Highlighted Text | H4: Used in the calculation of differential multiplier
B5: Median cost across all Maturity Levels | C5: =MEDIAN(C18:C32,C53:C54) -> 1000 | D5: =MEDIAN(D19:D31,D40:D45,D55:D64) -> 5984.5 | E5: =MEDIAN(E28:E35,E57:E66) -> 13750 | G5: Blue Text | H5: Derived from multipliers to use as final number or for further calculations
B6: DIFFERENTIAL MULTIPLIER (x) | C6: =C5/D5 -> 0.1670983374 | D6: - | E6: =E5/D5 -> 2.297602139 | G6: Red Text | H6: Not enough data to derive median cost / Outlier data
G7: Black Text | H7: Used in the calculation of the median cost
B8: SUMMARY | E8: Asset Size (Unit: '000)
B9: Maturity Level / Project Name | C9: Small | D9: Medium | E9: Large
B10: Level 1 | C10: =C36 -> 650 | D10: =D36 -> 1004 | E10: =E36 -> 2370
B11: Level 2 | C11: =C48 -> 1052.719525 | D11: =D48 -> 6300 | E11: =E48 -> 14474.89347
B12: Level 3 | C12: =C68 -> 5638.5 | D12: =D68 -> 10000 | E12: =E68 -> 25000
B14: HIGH-LEVEL COST OF A DIGITAL TWIN BY MATURITY LEVEL AND ASSET SCALE | E14: Asset Size (Unit: '000)
B15: Maturity Level / Project Name | C15: Single | D15: Multiple | E15: City | M15: =160/2 -> 80
B16: Level 1
B17: Gulf Power (Operating division of NextEra Energy) LiDAR scan | C17: 50
B18: Digital Twin of Sello Building Block | C18: 54.5
B19: Digital Twin of Sirnach Municipality | D19: 54.5
B20: Digital Twin of the municipality of Fällanden, Switzerland | D20: 54.5
B21: Yorkshire Geospatial Digital Twin | E21: 58
B22: Collins Engineers Uses Digital Inspection to Restore Iconic Pedestrian Bridge in Minneapolis | C22: 75
B23: Pointerra’s Utility Suite (comprising elements of the entire Pointerra3D Core, Analytics & Answers product stack) across selected PG&E business units | D23: 700
B24: Digital Twin of a Railway - Cross River Rail | C24: 300
B25: Building Development A (Anonymized project from Aurecon) | C25: 650
B26: Phase II - Digital Twin-based Diagnostics for Nuclear Auxiliary Systems project under the Department of Energy's Advanced Research Project Agency | C26: 1000
B27: Building Development B (Anonymized project from Aurecon) | C27: 1300
B28: Digital Twin of Bradford - Virtual Bradford | E28: 643
B29: Orlando Regional Digital Twin (ORD) | E29: 1000
B30: Infrastructure Mapping Application (IMA) - London's Public Infrastructure | D30: 1004
B31: Virtual Scan of LNG facilities | D31: 1300
B32: Digital Spacecraft Twins - U.S. Space Force | C32: 1500
B33: LiDAR scan of Entergy utility coverage service areas | E33: 2370
B34: Singapore Land Authority Nationwide Digital Twin of the Singapore Public Road System | E34: 3000 | L34: Median | M34: Min | N34: Max
B35: Digital Twin of Rennes Metropole City | E35: 3300 | L35: =MEDIAN($C$18:$C$32,$D$23:$D$31,$E$28:$E$35) -> 1000 | M35: =MIN($C$18:$C$32,$D$23:$D$31,$E$28:$E$35) -> 54.5 | N35: =MAX($C$18:$C$32,$D$23:$D$31,$E$28:$E$35) -> 3300
B36: MEDIAN | C36: =MEDIAN(C18:C32) -> 650 | D36: =MEDIAN(D23:D35) -> 1004 | E36: =MEDIAN(E28:E35) -> 2370
B38: Level 2
B39: EEC New City Thailand - Business Center and Liveable Smart City | D39: 1
B40: Redfern Station Signal Sighting | D40: 151 | E40: =D40*$E$6 -> 346.937923
B41: Digital Twin of floating offshore Wind Farm (WindFloatAtlantic Project) | D41: 3600 | E41: =D41*$E$6 -> 8271.3677
B42: Digital Twin of a semiconductor manufacturing plant | C42: 7500
B43: Univeristy of Central Florida (UCF) Microelectric Design and Production Digital Twin | C43: 8800
B44: Digital Twin of 3D printed metal parts for the U.S. Navy | D44: 9000 | E44: =D44*$E$6 -> 20678.41925
B45: Siemens Digital Twin for a wastewater treatment plant (Severn Trent) | D45: 12500 | E45: =D45*$E$6 -> 28720.02674
B46: WSP Australia Pty Ltd. - Southern Program Alliance | E46: 37400 | L46: Median | M46: Min | N46: Max
B47: London's King's Cross Railway Station | E47: 317000 | L47: =MEDIAN($D$41:$D$46) -> 9000 | M47: =MIN($D$40:$D$46) -> 151 | N47: =MAX($D$41:$D$46) -> 12500
B48: MEDIAN | C48: =D48*$C$6 -> 1052.719525 | D48: =MEDIAN(D40:D45) -> 6300 | E48: =D48*$E$6 -> 14474.89347
B50: Level 3
B51: Cauayan City Digital Twin | C51: 92
B52: Digital Twin of St. Pancras International Station | C52: 94
B53: Digital Twin of Wind Farm (5) - KEPCO E&C | C53: 4780
B54: Digital Twin Technology for Energy, Aerospace, and Industrial assets | C54: 6497
B55: Digital Twin of a Forest - Pulse of the Forest | D55: 8369
B56: Digital Twin-empowered Landslide Emergency Risk Management | D56: 9612.85
B57: Unified Complex Monitoring and Forecasting System (UCMFS) | E57: 9500
B58: Predictive Digital Twin of critical assets in the energy sector | D58: 10000
B59: Digital Twin of Electricity Network, United Kingdom | D59: 12500
B60: Digital Twin of the Ocean (DTO) | E60: 18000
B61: Digital Twin Victoria | E61: 24420
B62: New South Wales (NSW) Spatial Digital Twin | E62: 25000
B63: Digital Twin of the Space Environment | E63: 25200
B64: Digital Twin for complex enterprise networks | D64: 50000
B65: Virtual Singapore | E65: 73000
B66: Digital Twin of a City - Incheon Metropolitan City | E66: 100000 | L66: Median | M66: Min | N66: Max
B67: Digital Roads England | E67: 424557 | L67: =MEDIAN($C$53:$C$54,$D$55:$D$64,$E$57:$E$66) -> 15250 | M67: =MIN($C$53:$C$54,$D$55:$D$64,$E$57:$E$66) -> 4780 | N67: =MAX($C$53:$C$54,$D$55:$D$64,$E$57:$E$66) -> 100000
B68: MEDIAN | C68: =MEDIAN(C53:C54) -> 5638.5 | D68: =MEDIAN(D55:D64) -> 10000 | E68: =MEDIAN(E57:E66) -> 25000
C70: Small | D70: Medium | E70: Large
B71: MIN | C71: =MIN(C17:C32,C53:C54) -> 50 | D71: =MIN(D23:D31,D41:D46,D55:D64) -> 700 | E71: =MIN(E28:E35,E57:E66) -> 643
B72: MAX | C72: =MAX(C17:C32,C53:C54) -> 6497 | D72: =MAX(D23:D31,D40:D46,D55:D64) -> 50000 | E72: =MAX(E28:E35,E57:E66) -> 100000
B74: STDEV | C74: Small | D74: Medium | E74: Large
B75: Level 1 | C75: =_xlfn.STDEV.P(C18:C32)/10^3 -> 0.5424462072 | D75: =_xlfn.STDEV.P(D19:D31)/10^3 -> 0.5011591963 | E75: =_xlfn.STDEV.P(E28:E35)/10^3 -> 1.062897474
B76: Level 2 | C76: =_xlfn.STDEV.P(C42:C43)/10^3 -> 0.65 | D76: =_xlfn.STDEV.P(D40:D45)/10^3 -> 4.765226929 | E76: =_xlfn.STDEV.S(E44:E46)/10^3 -> 8.362820991
B77: Level 3 | C77: =_xlfn.STDEV.P(C51:C54)/10^3 -> 2.838424596 | D77: =_xlfn.STDEV.P(D55:D59)/10^3 -> 1.500166763 | E77: =_xlfn.STDEV.P(E57:E63)/10^3 -> 6.08157085

Sheet Benefits_Data (hidden)
A1: BENEFIT CALCULATION
A2: This tab provides an overview of primary benefits realized from Digital Twins in terms of cost savings. Benefits are broken down into two main categories of lifecycle phases (D&B, O&M) as well as additional benefits throughout the entire project (emissions savings, etc.). | J2: CALCULATION DATA
B4: Question | C4: Input | D4: Recommended Metric | J4: Legend | Z4: Processed Data (10%<x<60%) | AN4: Note: Paste metric data from use-case library (pivot table) as values, then delete all values above a 60%
B5: Scenario | J5: Conservative | K5: Min | Z5: Maturity | AA5: Visual | AB5: Decision | AC5: Resource | AD5: Productivity | AE5: Maintenance | AF5: Financials | AG5: Quality | AH5: Customer | AI5: Knowledge | AJ5: Security | AK5: Prediction | AL5: Risk | AM5: Environment | AN5: Others
B6: Phase | C6: D&B | J6: Moderate | K6: Q1 | Z6: 2
B7: Maturity Level | C7: ='Mapping (v3)'!J19 -> Level 0 | J7: Optimistic | K7: Median | Z7: 3
B8: Benefit Cap | C8: Max Cleaned | Z8: 2
Z9: 2
B10: Design and Build (D&B) | Z10: 2
B11: What is the total estimated capital expenditure (CAPEX) for the infrastructure project? | C11: ='ROI Calculator'!R147:S147 -> 0 | D11: 0 | J11: Transformed Data | U11: Automation (tentative) | Z11: 2
B12: Visualization and monitoring | C12: =IF('ROI Calculator'!R152="Yes",D12) -> FALSE | D12: =INDEX($K$15:$M$27,MATCH($B12,$J$15:$J$27,0),MATCH($C$7,$K$14:$M$14,0)) ->  | Z12: 3
B13: Informed decision-making | C13: =IF('ROI Calculator'!R153="Yes",D13) -> FALSE | D13: - | J13: DATA SUMMARY | Z13: 2
B14: Resource optimization and loss reduction | C14: =IF('ROI Calculator'!R154="Yes",D14) -> FALSE | D14: =INDEX($K$15:$M$27,MATCH($B14,$J$15:$J$27,0),MATCH($C$7,$K$14:$M$14,0)) ->  | F14: Benefit Range | J14: Benefit | K14: Level 1 | L14: Level 2 | M14: Level 3 | P14: Benefits quantified in US$M | Q14: Level 1 | R14: Level 2 | S14: Level 3 | U14: Formula to automate from pasted data set: | Z14: 3
B15: Productivity gains | C15: =IF('ROI Calculator'!R155="Yes",D15) -> FALSE | D15: =INDEX($K$15:$M$27,MATCH($B15,$J$15:$J$27,0),MATCH($C$7,$K$14:$M$14,0)) ->  | F15: Minimum | G15: =IFERROR($G$16-(INDEX(Benefits_Data!$K$15:$M$28,MATCH("Standard deviation",Benefits_Data!$J$15:$J$28,0),MATCH($C$7,Benefits_Data!$K$14:$M$14,0))),"-") -> - | J15: Visualization and monitoring | K15: - | L15: - | M15: - | P15: 1 | Q15: 3600000 | R15: 2300000 | S15: 3000000 | U15: Need to manually delete outliers and apply multipliers | Z15: 3
B16: Improve operations, inspection, maintenance | C16: =IF('ROI Calculator'!R156="Yes",D16) -> FALSE | D16: =INDEX($K$15:$M$27,MATCH($B16,$J$15:$J$27,0),MATCH($C$7,$K$14:$M$14,0)) ->  | F16: Median | G16: =MEDIAN(C12:C23) ->  | J16: Informed decision-making | K16: 0.47 | L16: 0.5725454545 | M16: 0.8102356902 | P16: 2 | R16: 16000000 | S16: 390000 | Z16: 2
B17: Improve or optimize financial performance | C17: =IF('ROI Calculator'!R157="Yes",D17) -> FALSE | D17: =INDEX($K$15:$M$27,MATCH($B17,$J$15:$J$27,0),MATCH($C$7,$K$14:$M$14,0)) ->  | F17: Maximum | G17: =IFERROR($G$16+(INDEX(Benefits_Data!$K$15:$M$28,MATCH("Standard deviation",Benefits_Data!$J$15:$J$28,0),MATCH($C$7,Benefits_Data!$K$14:$M$14,0))),"-") -> - | J17: Resource optimization and loss reduction | K17: 0.1723880597 | L17: 0.21 | M17: 0.325 | P17: 3 | R17: 8400000 | S17: 100000000 | U17: Formula | V17: Data | W17: Check | Z17: 3 | AD17: 0.5 | AF17: 0.33 | AH17: 0.4 | AJ17: 0.37 | AM17: 0.5
B18: Improve quality | C18: =IF('ROI Calculator'!R158="Yes",D18) -> FALSE | D18: =INDEX($K$15:$M$27,MATCH($B18,$J$15:$J$27,0),MATCH($C$7,$K$14:$M$14,0)) ->  | J18: Productivity gains | K18: 0.275 | L18: 0.335 | M18: 0.5 | P18: 4 | R18: 7600000 | S18: 840000 | U18: =MEDIAN(IF((Z6:Z1000=2)*(AD6:AD1000<>""),AD6:AD1000)) -> 0.335 | V18: 0.13 | W18: =MEDIAN(V18:V31) -> 0.335 | Z18: 1
B19: Increase customer satisfaction | C19: =IF('ROI Calculator'!R159="Yes",D19) -> FALSE | D19: =INDEX($K$15:$M$27,MATCH($B19,$J$15:$J$27,0),MATCH($C$7,$K$14:$M$14,0)) ->  | J19: Improve operations, inspection, maintenance | K19: 0.225 | L19: 0.35 | M19: 0.5178606965 | P19: 5 | R19: 1300000 | S19: 99000000 | V19: 0.5 | Z19: 2
B20: Improved knowledge and collaboration | C20: =IF('ROI Calculator'!R160="Yes",D20) -> FALSE | D20: =INDEX($K$15:$M$27,MATCH($B20,$J$15:$J$27,0),MATCH($C$7,$K$14:$M$14,0)) ->  | J20: Improve or optimize financial performance | K20: 0.2025 | L20: 0.225 | M20: 0.33 | P20: 6 | R20: 1200000 | S20: 1114000000 | V20: 0.37 | Z20: 2
B21: Security and safety | C21: =IF('ROI Calculator'!R161="Yes",D21) -> FALSE | D21: =INDEX($K$15:$M$27,MATCH($B21,$J$15:$J$27,0),MATCH($C$7,$K$14:$M$14,0)) ->  | J21: Improve quality | K21: 0.1231343284 | L21: 0.15 | M21: 0.2219402985 | P21: 7 | R21: 400000 | S21: 1000000 | Z21: 2
B22: Predictive intelligence | C22: =IF('ROI Calculator'!R162="Yes",D22) -> FALSE | D22: - | J22: Increase customer satisfaction | K22: 0.1537207031 | L22: 0.1791159091 | M22: 0.265 | P22: 8 | R22: 8300000 | S22: 3800000 | V22: 0.3 | Z22: 3
B23: Risk management and resilience | C23: =IF('ROI Calculator'!R163="Yes",D23) -> FALSE | D23: =INDEX($K$15:$M$27,MATCH($B23,$J$15:$J$27,0),MATCH($C$7,$K$14:$M$14,0)) ->  | J23: Improved knowledge and collaboration | K23: 0.328358209 | L23: 0.4 | M23: 0.591840796 | P23: 9 | R23: 100000 | S23: 620000000 | V23: 0.175 | Z23: 1
F24: Other Options | J24: Security and safety | K24: 0.2146289063 | L24: 0.2500863636 | M24: 0.37 | P24: 10 | R24: 2000000 | S24: 3200000 | V24: 0.3 | Z24: 3
C25: Median | F25: Mean | G25: Quartile 1 | H25: Min | J25: Predictive intelligence | K25: 0.39 | L25: 0.4750909091 | M25: 0.6723232323 | P25: 11 | R25: 2600000 | V25: 0.375 | Z25: 3
B26: D&B Benefit Proportion | C26: =IF(ISBLANK('ROI Calculator'!G195:H195)=TRUE,G16,VLOOKUP('ROI Calculator'!G195:H195,F15:G17,2,FALSE)) ->  | F26: =AVERAGE(C12:C23) ->  | G26: =_xlfn.QUARTILE.EXC(C12:C23,1) ->  | H26: =MIN(C12:C23) -> 0 | J26: Risk management and resilience | K26: 0.15 | L26: 0.1827272727 | M26: 0.2585858586 | P26: 12 | R26: 400000000 | V26: 0.2 | Z26: 3
J27: Improved environmental sustainability | K27: 0.2462686567 | L27: 0.3 | M27: 0.4 | P27: 13 | R27: 2500000 | V27: 0.375 | Z27: 3
B28: Total D&B Benefits Gained | C28: =IFERROR(C11*C26,0) -> 0 | F28: =IFERROR(C11*F26,0) -> 0 | G28: =IFERROR(C11*G26,0) -> 0 | H28: =IFERROR(C11*H26,0) -> 0 | J28: Standard deviation | K28: =_xlfn.STDEV.S(K16:K27) -> 0.1044898509 | L28: =_xlfn.STDEV.S(L16:L27) -> 0.1299203368 | M28: =_xlfn.STDEV.S(M16:M27) -> 0.182570758 | P28: 14 | R28: 1500000 | V28: 0.5 | Z28: 1
B29: Total D&B Benefits Maximum | C29: =INDEX($Q$15:$S$34,MATCH($C$8,$P$15:$P$34,0),MATCH($C$7,$Q$14:$S$14,0)) ->  | P29: 15 | R29: 50000 | Z29: 2
P30: Median | Q30: =MEDIAN(Q15:Q29) -> 3600000 | R30: =MEDIAN(R15:R29) -> 2300000 | S30: =MEDIAN(S15:S29) -> 3500000 | V30: 0.25 | Z30: 2
P31: Mean | Q31: =AVERAGE(Q15:Q29) -> 3600000 | R31: =AVERAGE(R15:R29) -> 30283333.33 | S31: 194523000 | V31: 0.4 | Z31: 2
B32: Environmental Sustainability (Emissions) | P32: Median Cleaned | Q32: =MEDIAN(Q15:Q29) -> 3600000 | R32: =MEDIAN(R22,R16:R18) -> 8350000 | S32: =MEDIAN(S19,S17) -> 99500000 | Z32: 2
B33: What is the total estimated carbon emissions produced over the entire project lifecycle? | C33: ='ROI Calculator'!R171:S171 -> 0 | D33: 0 | E33: in tCO2e | P33: Mean Cleaned | Q33: =AVERAGE(Q16:Q30) -> 3600000 | R33: =AVERAGE(R22,R16:R18) -> 10075000 | S33: =AVERAGE(S19,S17) -> 99500000 | Z33: 3
B34: Social cost of carbon | C34: 40 | E34: per tCO2e | P34: Max Cleaned | Q34: =MAX(Q15:Q29) -> 3600000 | R34: =MAX(R16:R18,R22) -> 16000000 | S34: =MAX(S17,S19) -> 100000000 | Z34: 2
B35: Improved environmental sustainability | C35: =IF('ROI Calculator'!R164="Yes",D35) -> FALSE | D35: =INDEX(K15:M27,MATCH(B35,J15:J27,0),MATCH(C7,K14:M14,0)) ->  | Z35: 3
Z36: 1
J37: Manual Benefit Calculations (Multipliers and Outliers) | Z37: 1
J38: MULTIPLIER BETWEEN MATURITY LEVELS | Z38: 2
B39: Emissions saved | C39: =C33*C35 -> 0 | D39: in tCO2e | J39: Maturity Level / Project Name | K39: Small > Medium | L39: Small < Medium | M39: Medium > Large | N39: Medium < Large | O39: Small > Large | Q39: Highlighted Text | R39: Calculated through multipliers | Z39: 2
B40: Initial total cost of carbon | C40: =C33*C34 -> 0 | J40: Median benefit across all Maturity Levels | K40: =MEDIAN(K108,K113,K121,K144,K148) -> 0.225 | L40: =MEDIAN(L91,L108,L113,L121,L125,L134,L157) -> 0.3 | M40: =MEDIAN(N91,N108,N121,N130,N140,N157) ->  | N40: =MEDIAN(M91,M108,M121,M130,M140,M157) -> 0.35 | Q40: Red Text | R40: Not enough data to derive median cost / Outlier data | Z40: 3 | AF40: 0.35
J41: DIFFERENTIAL MULTIPLIER (ALL LEVELS) | K41: - | L41: =L40/K40 -> 1.333333333 | M41: =M40/N40 ->  | N41: =N40/L40 -> 1.166666667 | Q41: Black Text | R41: Used in the calculation of the median cost | Z41: 3
B42: Emissions cost reduced | C42: =C39*C34 -> 0 | J42: Visualization and monitoring | Z42: 3
J43: Informed decision-making | Z43: 3 | AC43: 0.15
J44: Resource optimization and loss reduction | M44: =M91/L91 -> 1.547619048 | N44: =L91/M91 -> 0.6461538462 | Z44: 3
J45: Productivity gains | K45: =L108/K108 -> 1.218181818 | L45: =K108/L108 -> 0.8208955224 | M45: =M108/L108 -> 1.492537313 | N45: =L108/M108 -> 0.67 | O45: =M108/K108 -> 1.818181818 | Z45: 2
J46: Improve operations, inspection, maintenance | K46: =L113/K113 -> 1.555555556 | L46: =K113/L113 -> 0.6428571429 | Z46: 3
J47: Improve or optimize financial performance | K47: =L121/K121 -> 1.111111111 | L47: =K121/L121 -> 0.9 | M47: =M121/L121 -> 1.466666667 | N47: =L121/M121 -> 0.6818181818 | O47: =M121/K121 -> 1.62962963 | Z47: 1
J48: Improve quality | Z48: 2
J49: Increase customer satisfaction | Z49: 3 | AD49: 0.3 | AJ49: 0.6
J50: Improved knowledge and collaboration | Z50: 1
J51: Security and safety | Z51: 1
J52: Predictive intelligence | Z52: 3 | AC52: 0.17 | AM52: 0.17
J53: Risk management and resilience | Z53: 2
J54: Improved environmental sustainability | M54: =M157/L157 -> 1.333333333 | N54: =L157/M157 -> 0.75 | Z54: 2
J55: MEDIAN | K55: =MEDIAN(K42:K54) -> 1.218181818 | L55: =MEDIAN(L42:L54) -> 0.8208955224 | M55: =MEDIAN(M42:M54) -> 1.47960199 | N55: =MEDIAN(N42:N54) -> 0.6759090909 | O55: =MEDIAN(O42:O54) -> 1.723905724 | Z55: 2
Z56: 2
J57: DATA SUMMARY | Z57: 3
J58: Benefit | K58: Level 1 | L58: Level 2 | M58: Level 3 | O58: Threshold? | P58: All | Q58: L1 | R58: L2 | S58: L3 | Z58: 2
J59: Visualization and monitoring | K59: =K77 -> - | L59: =L77 -> - | M59: =M77 -> - | O59: Average All | P59: =AVERAGE($K$80,$L$84:$M$90,$K$94:$M$107,$K$111:$M$112,$K$116:$M$120,$K$124:$L$124,$L$128:$M$129,$L$133,$M$137:$M$139,$K$143,$K$147,$L$151:$M$156) -> 0.2993150685 | Q59: =AVERAGE(K76,K80,K84:K90,K94:K107,K111:K112,K116:K120,K124,K128:K129,K133,K137:K139,K143,K147,K151:K156) -> 0.3195454545 | R59: =AVERAGE(L84:L90,L94:L107,L111:L112,L116:L120,L128:L129,L137:L139,L151:L156,L124,L133) -> 0.3508928571 | S59: =AVERAGE(M84:M90,M94:M107,M111:M112,M116:M120,M128:M129,M137:M139,M151:M156) -> 0.2502941176 | Z59: 2
J60: Informed decision-making | K60: =K81 -> 0.47 | L60: =L81 -> 0.5725454545 | M60: =M81 -> 0.8102356902 | O60: Stdev. All | P60: =STDEV($K$80,$L$84:$M$90,$K$94:$M$107,$K$111:$M$112,$K$116:$M$120,$K$124:$L$124,$L$128:$M$129,$L$133,$M$137:$M$139,$K$143,$K$147,$L$151:$M$156) -> 0.1955304663 | Q60: =_xlfn.STDEV.S(K76,K80,K84:K90,K94:K107,K111:K112,K116:K120,K124,K128:K129,K133,K137:K139,K143,K147,K151:K156) -> 0.1605063012 | R60: =_xlfn.STDEV.S(L84:L90,L94:L107,L111:L112,L116:L120,L128:L129,L137:L139,L151:L156,L124,L133) -> 0.2209661176 | S60: =_xlfn.STDEV.S(M84:M90,M94:M107,M111:M112,M116:M120,M128:M129,M137:M139,M151:M156) -> 0.1754731317 | Z60: 3
J61: Resource optimization and loss reduction | K61: =K91 -> 0.1723880597 | L61: =L91 -> 0.21 | M61: =M91 -> 0.325 | O61: Min Thresh | P61: =P59-P60 -> 0.1037846022 | Q61: =Q59-Q60 -> 0.1590391533 | R61: =R59-R60 -> 0.1299267395 | S61: =S59-S60 -> 0.0748209859 | Z61: 3
J62: Productivity gains | K62: =K108 -> 0.275 | L62: =L108 -> 0.335 | M62: =M108 -> 0.5 | O62: Max Thresh | P62: =P59+P60 -> 0.4948455348 | Q62: =Q59+Q60 -> 0.4800517558 | R62: =R59+R60 -> 0.5718589748 | S62: =S59+S60 -> 0.4257672494 | Z62: 2
J63: Improve operations, inspection, maintenance | K63: =K113 -> 0.225 | L63: =L113 -> 0.35 | M63: =M113 -> 0.5178606965 | Z63: 2
J64: Improve or optimize financial performance | K64: =K121 -> 0.2025 | L64: =L121 -> 0.225 | M64: =M121 -> 0.33 | O64: average L3 | P64: =AVERAGE($M$84:$M$90,$M$94:$M$107,$M$111:$M$112,$M$116:$M$120,$M$128:$M$129,$M$137:$M$139,$M$151:$M$156) -> 0.2502941176 | Z64: 2
J65: Improve quality | K65: =K125 -> 0.1231343284 | L65: =L125 -> 0.15 | M65: =M125 -> 0.2219402985 | O65: stdev | P65: =_xlfn.STDEV.S($M$84:$M$90,$M$94:$M$107,$M$111:$M$112,$M$116:$M$120,$M$128:$M$129,$M$137:$M$139,$M$151:$M$156) -> 0.1754731317 | Z65: 2
J66: Increase customer satisfaction | K66: =K130 -> 0.1537207031 | L66: =L130 -> 0.1791159091 | M66: =M130 -> 0.265 | P66: =P64-P65 -> 0.0748209859 | Z66: 2
J67: Improved knowledge and collaboration | K67: =K134 -> 0.328358209 | L67: =L134 -> 0.4 | M67: =M134 -> 0.591840796 | P67: =P64+P65 -> 0.4257672494 | Z67: 2
J68: Security and safety | K68: =K140 -> 0.2146289063 | L68: =L140 -> 0.2500863636 | M68: =M140 -> 0.37 | Z68: 2
J69: Predictive intelligence | K69: =K144 -> 0.39 | L69: =L144 -> 0.4750909091 | M69: =M144 -> 0.6723232323 | O69: avg l2 | P69: =AVERAGE($L$84:$L$90,$L$94:$L$107,$L$111:$L$112,$L$116:$L$117,$L$124,$L$128,$L$133,$L$151) -> 0.3508928571 | Z69: 3 | AC69: 0.4 | AD69: 0.15
J70: Risk management and resilience | K70: =K148 -> 0.15 | L70: =L148 -> 0.1827272727 | M70: =M148 -> 0.2585858586 | O70: stdev | P70: =_xlfn.STDEV.S($L$84:$L$90,$L$94:$L$107,$L$111:$L$112,$L$116:$L$117,$L$124,$L$128,$L$133,$L$151) -> 0.2209661176 | Z70: 2 | AD70: 0.13 | AF70: 0.225
J71: Improved environmental sustainability | K71: =K157 -> 0.2462686567 | L71: =L157 -> 0.3 | M71: =M157 -> 0.4 | Z71: 3
Z72: 2
J73: HIGH LEVEL BENEFITS OF A DIGITAL TWIN BY BENEFIT AND MATURITY LEVEL | Z73: 3
J74: MEDIAN | O74: AVERAGE | Z74: 1 | AE74: 0.2 | AF74: 0.135 | AL74: 0.15
J75: Visualization and Monitoring | K75: Level 1 | L75: Level 2 | M75: Level 3 | O75: Visualization and Monitoring | P75: Level 1 | Q75: Level 2 | R75: Level 3 | Z75: 3
K76: N/A | L76: N/A | M76: N/A | P76: N/A | Q76: N/A | R76: N/A | Z76: 3
J77: MEDIAN | K77: - | L77: - | M77: - | O77: AVERAGE | Z77: 3
Z78: 2 | AI78: 0.4
J79: Informed Decision-making | K79: Level 1 | L79: Level 2 | M79: Level 3 | O79: Informed Decision-making | P79: Level 1 | Q79: Level 2 | R79: Level 3 | Z79: 2
K80: 0.47 | L80: NA | M80: NA | P80: 0.47 | Q80: NA | R80: NA | Z80: 2
J81: MEDIAN | K81: =K80 -> 0.47 | L81: =K81*K55 -> 0.5725454545 | M81: =K81*O55 -> 0.8102356902 | O81: AVERAGE | Z81: 2
Z82: 1
J83: Resource optimization and loss reduction | K83: Level 1 | L83: Level 2 | M83: Level 3 | O83: Resource optimization and loss reduction | P83: Level 1 | Q83: Level 2 | R83: Level 3 | Z83: 1
K84: NA | L84: 0.4 | M84: 0.4 | P84: NA | Q84: 0.4 | R84: 0.4 | Z84: 2
L85: 0.35 | M85: 0.25 | Q85: 0.35 | R85: 0.25 | Z85: 3
L86: 0.7 | M86: 0.02 | N86: =_xlfn.QUARTILE.INC(L84:L89,1) -> 0.14 | Q86: 0.7 | R86: 0.02 | Z86: 2
L87: 0.07 | M87: 0.1 | N87: =_xlfn.QUARTILE.INC(L84:L89,3) -> 0.3975 | Q87: 0.07 | R87: 0.1 | Z87: 3
L88: 0.39 | M88: 0.11 | N88: =MEDIAN(L88,L85,L84) -> 0.39 | Q88: 0.39 | R88: 0.11 | Z88: 2
L89: 0.01 | M89: 0.15 | Q89: 0.01 | R89: 0.15 | Z89: 2
M90: 0.17 | R90: 0.17 | Z90: 1
J91: MEDIAN | K91: =L91*L55 -> 0.1723880597 | L91: =MEDIAN(L87,L85) -> 0.21 | M91: =MEDIAN(M84:M85) -> 0.325 | O91: AVERAGE | Q91: =AVERAGE(Q87:Q88,Q84:Q85) -> 0.3025 | R91: =AVERAGE(R84:R85) -> 0.325 | Z91: 3
Z92: 2
J93: Productivity Gains | K93: Level 1 | L93: Level 2 | M93: Level 3 | O93: Productivity Gains | P93: Level 1 | Q93: Level 2 | R93: Level 3 | Z93: 2
K94: 0.35 | L94: 0.38 | M94: 0.6 | P94: 0.35 | Q94: 0.38 | R94: 0.6 | Z94: 3
K95: 0.66 | L95: 0.37 | M95: 0.05 | P95: 0.66 | Q95: 0.37 | R95: 0.05 | Z95: 2
K96: 0.2 | L96: 0.3 | M96: 0.2 | P96: 0.2 | Q96: 0.3 | R96: 0.2 | Z96: 3 | AM96: 0.4
L97: 0.13 | M97: 0.15 | Q97: 0.13 | R97: 0.15 | Z97: 2
L98: 0.25 | M98: 0.2 | Q98: 0.25 | R98: 0.2 | Z98: 3
L99: 0.7 | M99: 0.5 | Q99: 0.7 | R99: 0.5 | Z99: 2
L100: 0.3 | M100: 0.25 | Q100: 0.3 | R100: 0.25 | Z100: 3
L101: 0.18 | M101: 0.65 | Q101: 0.18 | R101: 0.65 | Z101: 3
L102: 0.38 | M102: 0.3 | Q102: 0.38 | R102: 0.3 | Z102: 2
L103: 0.5 | Q103: 0.5 | Z103: 2
L104: 0.2 | Q104: 0.2 | Z104: 3
L105: 0.5 | Q105: 0.5 | Z105: 3
L106: 0.4 | Q106: 0.4 | Z106: 2
L107: 0.75 | Q107: 0.75 | Z107: 2
J108: MEDIAN | K108: =MEDIAN(K96,K94) -> 0.275 | L108: =MEDIAN(L100:L106,L94:L98) -> 0.335 | M108: =MEDIAN(M99:M102,M94) -> 0.5 | O108: AVERAGE | Z108: 1
Z109: 3
J110: Improve operations, inspection, maintenance | K110: Level 1 | L110: Level 2 | M110: Level 3 | O110: Improve operations, inspection, maintenance | P110: Level 1 | Q110: Level 2 | R110: Level 3 | Z110: 3
K111: 0.25 | L111: 0.35 | M111: 0.15 | P111: 0.25 | Q111: 0.35 | R111: 0.15 | Z111: 2
K112: 0.2 | L112: 0.1 | M112: 0.1 | P112: 0.2 | Q112: 0.1 | R112: 0.1 | Z112: 2
J113: MEDIAN | K113: =MEDIAN(K111:K112) -> 0.225 | L113: =MEDIAN(L111) -> 0.35 | M113: =L113*M55 -> 0.5178606965 | N113: =K113*O55 -> 0.3878787879 | O113: AVERAGE | Z113: 3
Z114: 2
J115: Improve or optimize financial performance | K115: Level 1 | L115: Level 2 | M115: Level 3 | O115: Improve or optimize financial performance | P115: Level 1 | Q115: Level 2 | R115: Level 3 | Z115: 3
K116: 0.27 | L116: 0.225 | M116: 0.12 | P116: 0.27 | Q116: 0.225 | R116: 0.12 | Z116: 2
K117: 0.135 | L117: 0.09 | M117: 0.35 | P117: 0.135 | Q117: 0.09 | R117: 0.35 | Z117: 2 | AD117: 0.5
M118: 0.33 | R118: 0.33 | Z118: 2
M119: 0.33 | R119: 0.33 | Z119: 2 | AD119: 0.37
M120: 0.1 | R120: 0.1 | Z120: 2
J121: MEDIAN | K121: =MEDIAN(K116:K117) -> 0.2025 | L121: =MEDIAN(L116) -> 0.225 | M121: =MEDIAN(M117:M119) -> 0.33 | O121: AVERAGE | Z121: 3
Z122: 2
J123: Improve Quality | K123: Level 1 | L123: Level 2 | M123: Level 3 | O123: Improve Quality | P123: Level 1 | Q123: Level 2 | R123: Level 3 | Z123: 2
K124: 0.44 | L124: 0.15 | M124: NA | P124: 0.44 | Q124: 0.15 | R124: NA | Z124: 3
J125: MEDIAN | K125: =L125*L55 -> 0.1231343284 | L125: =MEDIAN(L124) -> 0.15 | M125: =L125*M55 -> 0.2219402985 | O125: AVERAGE | Z125: 3
Z126: 3 | AF126: 0.12
J127: Increase customer satisfaction | K127: Level 1 | L127: Level 2 | M127: Level 3 | O127: Increase customer satisfaction | P127: Level 1 | Q127: Level 2 | R127: Level 3 | Z127: 2
K128: NA | L128: 0.95 | M128: 0.13 | P128: NA | Q128: 0.95 | R128: 0.13 | Z128: 3
M129: 0.4 | R129: 0.4 | Z129: 3 | AC129: 0.105 | AF129: 0.33
J130: MEDIAN | K130: =M130/O55 -> 0.1537207031 | L130: =M130*N55 -> 0.1791159091 | M130: =MEDIAN(M128:M129) -> 0.265 | O130: AVERAGE | Z130: 2 | AD130: 0.3
Z131: 1
J132: Improve knowledge and collaboration | K132: Level 1 | L132: Level 2 | M132: Level 3 | O132: Improve knowledge and collaboration | P132: Level 1 | Q132: Level 2 | R132: Level 3 | Z132: 1
K133: NA | L133: 0.4 | M133: NA | P133: NA | Q133: 0.4 | R133: NA | Z133: 1
J134: MEDIAN | K134: =L134*L55 -> 0.328358209 | L134: =MEDIAN(L133) -> 0.4 | M134: =L134*M55 -> 0.591840796 | O134: AVERAGE | Z134: 3
Z135: 3
J136: Security and safety | K136: Level 1 | L136: Level 2 | M136: Level 3 | O136: Security and safety | P136: Level 1 | Q136: Level 2 | R136: Level 3 | Z136: 3
K137: NA | L137: NA | M137: 0.08 | P137: NA | Q137: NA | R137: 0.08 | Z137: 1
M138: 0.37 | R138: 0.37 | Z138: 1
M139: 0.6 | R139: 0.6 | Z139: 1
J140: MEDIAN | K140: =M140/O55 -> 0.2146289063 | L140: =M140*N55 -> 0.2500863636 | M140: =MEDIAN(M137:M139) -> 0.37 | O140: AVERAGE | Z140: 1 | AB140: 0.47 | AD140: 0.35 | AF140: 0.265 | AG140: 0.4425 | AK140: 0.39
Z141: 3
J142: Predictive intelligence | K142: Level 1 | L142: Level 2 | M142: Level 3 | O142: Predictive intelligence | P142: Level 1 | Q142: Level 2 | R142: Level 3 | Z142: 1
K143: 0.39 | L143: NA | M143: NA | P143: 0.39 | Q143: NA | R143: NA | Z143: 1 | AE143: 0.25
J144: MEDIAN | K144: =MEDIAN(K143) -> 0.39 | L144: =K144*K55 -> 0.4750909091 | M144: =K144*O55 -> 0.6723232323 | O144: AVERAGE | Z144: 1
Z145: 3
J146: Risk mangement and resilience | K146: Level 1 | L146: Level 2 | M146: Level 3 | O146: Risk mangement and resilience | P146: Level 1 | Q146: Level 2 | R146: Level 3 | Z146: 2
K147: 0.15 | L147: NA | M147: NA | P147: 0.15 | Q147: NA | R147: NA | Z147: 3 | AD147: 0.6
J148: MEDIAN | K148: =MEDIAN(K147) -> 0.15 | L148: =K148*K55 -> 0.1827272727 | M148: =K148*O55 -> 0.2585858586 | O148: AVERAGE | Z148: 2
Z149: 3 | AH149: 0.125
J150: Improved environmental sustainability | K150: Level 1 | L150: Level 2 | M150: Level 3 | O150: Improved environmental sustainability | P150: Level 1 | Q150: Level 2 | R150: Level 3 | Z150: 3
K151: NA | L151: 0.3 | M151: 0.03 | P151: NA | Q151: 0.3 | R151: 0.03 | Z151: 2 | AD151: 0.175
M152: 0.05 | R152: 0.05 | Z152: 2 | AD152: 0.3
M153: 0.2 | R153: 0.2 | Z153: 2
M154: 0.5 | R154: 0.5 | Z154: 3
M155: 0.4 | R155: 0.4 | Z155: 2 | AD155: 0.375
M156: 0.17 | R156: 0.17 | Z156: 2
J157: MEDIAN | K157: =L157*L55 -> 0.2462686567 | L157: =MEDIAN(L151:L156) -> 0.3 | M157: =MEDIAN(M153:M155) -> 0.4 | O157: AVERAGE | Z157: 2
Z158: 2 | AD158: 0.2 | AG158: 0.15
Z159: 2 | AD159: 0.375 | AM159: 0.3
Z160: 3
Z161: 3
Z162: 2
Z163: 3
Z164: 2 | AD164: 0.5
Z165: 3
Z166: 1
Z167: 1 | AD167: 0.2
Z168: 3
Z169: 2
Z170: 2
Z171: 2
Z172: 3
Z173: 2
Z174: 2
Z175: 1
Z176: 3
Z177: 3
Z178: 2
Z179: 1
Z180: 3
Z181: 2
Z182: 2
Z183: 2 | AC183: 0.35 | AD183: 0.25
Z184: 2
Z185: 1
Z186: 1
Z187: 3 | AF187: 0.35 | AN187: 0.9
Z188: 3
Z189: 3
Z190: 3 | AC190: 0.25 | AD190: 0.2 | AM190: 0.2
Z191: 3
Z192: 2
Z193: 2
Z194: 3
Z195: 2 | AC195: 0.39 | AD195: 0.4
Z196: 3
Z197: 1
Z198: 1
Z199: 2
Z200: 3
Z201: 1
... 55 more rows

Sheet Dropdown (hidden)
B2: Yes/No
B3: Yes
B4: No
B6: Phase
B7: Select Input
B8: D&B
B9: O&M
B10: Entire
B12: MATURITY LEVEL
B13: -
B14: Level 1: Descriptive Twin
B15: Level 2: Informative Twin
B16: Level 3: Predictive Twin
B18: ASSET SCALE
B19: -
B20: Small
B21: Medium
B22: Large
B24: SCENARIO
B25: Conservative
B26: Moderate
B27: Optimistic
B29: RESULT IF COST IS INDICATIVE
B30: The indicative cost of a
B31: Digital Twin for a
B32: scale asset is
B34: RESULT IF COST IS KNOWN
B35: The total cost of my
B36: Digital Twin
B37: is
B39: COST OPTION
B40: Median
B41: Minimum
B42: Maximum
B44: Yes/No
B45: Yes
B46: No
